Cogmind - Beta 13 @@@ ROGUE MODE // 2024.05.07 @ 20:50:20 Player: Bace Troncons Result: Destroyed by Y9-GYZ(R) with Subdweller Machine Gun Performance ------------- Evolutions (0) 0 Regions Visited (2) 400 Robots Destroyed (27) 135 Value Destroyed (592) 592 Prototype IDs (4) 80 Alien Tech Used (0) 0 Bonus (0) 0 TOTAL SCORE: 1207 Bonus ------- None Cogmind --------- Core Integrity 0/250 Matter 287/300 Energy 125/125 System Corruption 3% Temperature Cool (0) Movement Core (150) Ox2 Location -10/Subcaves Parts ------- > --- POWER (1) -------- Light Ion Engine > --- PROPULSION (2) --- (None) > --- UTILITY (2) ------ Weapon Shielding > --- WEAPON (2) ------- Heavy Assault Rifle Flail > --- INVENTORY (5) ---- Ion Engine Large Storage Unit Signal Interpreter Terrain Scan Processor Grenade Launcher Peak State ------------ > --- POWER ------------ Ion Engine > --- PROPULSION ------- Light Treads Light Treads > --- UTILITY ---------- Huge Storage Unit Light Armor Plating > --- WEAPON ----------- Heavy Assault Rifle Heavy Assault Rifle > --- INVENTORY -------- Light Treads Aluminum Leg Aluminum Leg Small Storage Unit Large Storage Unit Large Storage Unit Signal Interpreter Terrain Scanner Terrain Scan Processor Terrain Scan Processor Seismic Detector Weapon Shielding Hacking Suite Grenade Launcher Datajack Flail [Rating: 11] Favorites ----------- Power Ion Engine Engine Ion Engine Propulsion Light Treads Treads Light Treads Utility Huge Storage Unit Device Terrain Scanner Storage Huge Storage Unit Protection Light Armor Plating Weapon Heavy Assault Rifle Energy Gun Medium Laser Ballistic Gun Heavy Assault Rifle Launcher Grenade Launcher Impact Weapon Flail Build | -11 -10 -10 ------- Run | Yrd Mat Sub Slots Evolved . | . . . Power . | . . . Propulsion . | . . . Utility . | . . . Weapon . | . . . Parts Attached 20 | 5 14 1 Power 2 | 1 1 . Engine 2 | 1 1 . Core . | . . . Reactor . | . . . Propulsion 3 | 2 1 . Treads 3 | 2 1 . Leg . | . . . Wheel . | . . . Hover . | . . . Flight . | . . . Utility 7 | 1 5 1 Device 1 | . 1 . Storage 4 | 1 3 . Processor . | . . . Hackware . | . . . Protection 2 | . 1 1 Artifact . | . . . Weapon 8 | 1 7 . Energy Gun 1 | 1 . . Energy Cannon . | . . . Ballistic Gun 5 | . 5 . Ballistic Cannon . | . . . Launcher 1 | . 1 . Special Weapon . | . . . Impact Weapon 1 | . 1 . Slashing Weapon . | . . . Piercing Weapon . | . . . Special Melee Weapon . | . . . Unidentified Prototypes . | . . . Parts Lost 5 | . 2 3 Power . | . . . Propulsion 3 | . 1 2 Utility 2 | . 1 1 Weapon . | . . . Highest Loss Streak 3 | . 1 3 To Critical Strikes . | . . . Average Slot Usage (%) 93 | . 94 89 Engine 14 | . 14 14 Treads 26 | . 26 27 Device 2 | . . 13 Storage 14 | . 17 . Protection 6 | . 7 5 Ballistic Gun 20 | . 21 14 Impact Weapon 5 | . 4 14 Naked Turns . | . . . Heaviest Build 94 | 12 94 10 Greatest Support 40 | 40 40 40 Greatest Overweight (x) 4 | . 4 2 Average Overweight (x) 1 | . 1 . Largest Inventory Capacity 25 | 8 25 5 Average Capacity 18 | 7 21 5 Most Carried 18 | 4 18 5 Average Carried 11 | 3 12 5 Final Capacity 25 | 8 25 5 Final Carried 18 | 4 18 5 Class Distribution -------------------- 100% | Mutant Dominant Class ---------------- Mutant | -10/Materials Mutant | -10/Subcaves Resources | -11 -10 -10 ----------- Run | Yrd Mat Sub Matter Collected 781 | 189 568 24 Remotely . | . . . Salvage Created 828 | . 774 54 Parts 55 | . 53 2 Haulers Intercepted 1 | . 1 . Recyclers Shooed 2 | . 2 . Parts Field Recycled . | . . . Retrieved Matter . | . . . Parts Self-Destructed . | . . . Prevented . | . . . Kills | -11 -10 -10 ------- Run | Yrd Mat Sub Combat Hostiles Destroyed 18 | . 16 2 Melee 1 | . . 1 Guns 14 | . 14 . Classes Destroyed 8 | . 7 1 Builder 1 | . 1 . Hauler 1 | . 1 . Recycler 2 | . 2 . Operator 2 | . 2 . Watcher 3 | . 3 . Swarmer 6 | . 6 . Grunt 10 | . 10 . Subdweller 2 | . . 2 Best Kill Streak 4 | . 4 1 Combat Bots Only 3 | . 3 1 Max Kills in Single Turn 1 | . 1 1 Gunslinging . | . . . Exploded . | . . . Melee 1 | . . 1 Uniques/NPCs Destroyed . | . . . Combat | -11 -10 -10 -------- Run | Yrd Mat Sub Hostile Shots Fired 109 | . 81 28 Missed 23 | . 16 7 Damage Taken 1110 | . 678 432 Core 254 | . 111 143 Absorbed by Shields . | . . . Redirected to Shielding 23 | . . 23 Core Remaining (%) 100 | 100 . . Volleys Fired 85 | . 81 4 Largest 2 | . 2 1 Hottest 70 | . 70 23 Shots Fired 153 | . 149 4 Gun 153 | . 149 4 Cannon . | . . . Launcher . | . . . Special . | . . . Kinetic 152 | . 148 4 Thermal 1 | . 1 . Explosive . | . . . Electromagnetic . | . . . Robot Hit Streak 8 | . 7 8 Robot Miss Streak 7 | . 7 1 Penetration Max . | . . . Secondary Targets 2 | . 2 . Max Gunslinging Chain 1 | . 1 . Shots Hit Robots 107 | . 95 12 Core Hits 41 | . 39 2 Critical Kills 2 | . 1 1 Critical Parts Destroyed 5 | . 2 3 Critical Strikes 7 | . 3 4 Destroy 1 | . 1 . Smash 6 | . 2 4 Melee Attacks 22 | . 8 14 Impact 22 | . 8 14 Slashing . | . . . Piercing . | . . . Sneak Attacks . | . . . Combat Hostiles . | . . . Follow-up Attacks . | . . . Damage Inflicted 1460 | . 1160 300 Guns 1056 | . 1008 48 Cannons . | . . . Explosions . | . . . Melee 404 | . 152 252 Ramming . | . . . Kinetic 1056 | . 1008 48 Thermal . | . . . Explosive . | . . . Electromagnetic . | . . . Impact 404 | . 152 252 Slashing . | . . . Piercing . | . . . Highest Corruption 3 | . 3 3 Average Corruption 2 | . 2 3 Corruption Purged . | . . . Corruption Blocked . | . . . Effects 39 | . 31 8 Message Errors 11 | . 8 3 Matter Fused 11 | . 8 3 Heat Flow Errors 5 | . 4 1 Energy Discharges 3 | . 3 . Data Loss (minor) 4 | . 3 1 Data Loss (major) 3 | . 3 . Misfires 1 | . 1 . Alerts 1 | . 1 . Overload Shots . | . . . Overflow Damage 197 | . 75 122 Projectiles . | . . . Explosions . | . . . Melee 197 | . 75 122 Knockbacks 3 | . 1 2 Impact 3 | . 1 2 Kinetic . | . . . Secondary . | . . . Self-Inflicted Damage . | . . . Shots . | . . . Rammed . | . . . Targets Rammed . | . . . Kicked . | . . . Crushed . | . . . Highest Temperature 278 | . 278 250 Average Temperature 64 | . 60 132 Received Heat Transfer 339 | . 291 48 Siege Activations . | . . . Robots Corrupted . | . . . Combat Hostiles . | . . . Parts Fried 1 | . 1 . Impact Corruptions 6 | . 3 3 Robots Melted . | . . . Combat Hostiles . | . . . Parts Melted . | . . . Heat Transferred . | . . . Parts Sabotaged . | . . . Parts Stolen . | . . . Parts Stripped . | . . . Power Chain Reactions . | . . . Alert | -11 -10 -10 ------- Run | Yrd Mat Sub Peak Influence 141 | . 141 . Initial . | . . . Average 64 | . 66 . Maximum Alert Level . | . . . Low Security (%) 100 | 100 100 . Level 1 . | . . . Level 2 . | . . . Level 3 . | . . . Level 4 . | . . . Level 5 . | . . . High Security . | . . . Max Security . | . . . Squads Dispatched 2 | . 2 . Investigation . | . . . Extermination . | . . . Reinforcement 2 | . 2 . Assault . | . . . Garrison . | . . . Intercept . | . . . Searches Triggered . | . . . Construction Impeded . | . . . Haulers Reinforced . | . . . Active Scanning Responses . | . . . Cargo Convoy Interrupts . | . . . Stealth | -11 -10 -10 --------- Run | Yrd Mat Sub Distress Signals 2 | . 2 . Communications Jammed . | . . . Distress Signals . | . . . Times Spotted 41 | . 34 7 Peak Tracking Total 4 | . 4 2 Tactical Retreats 8 | . 3 5 Traps | -11 -10 -10 ------- Run | Yrd Mat Sub Traps Triggered 2 | . 2 . Indirectly . | . . . Trap Hack Attempts . | . . . Triggered . | . . . Disarmed . | . . . Reprogrammed . | . . . Reused . | . . . Traps Extracted . | . . . Installed . | . . . Triggered . | . . . Machines | -11 -10 -10 ---------- Run | Yrd Mat Sub Machines Disabled . | . . . Max in Single Turn . | . . . Machines Repaired . | . . . Machines Dismantled . | . . . Machines Sabotaged . | . . . Overloaded Fab Kills . | . . . Hacking | -11 -10 -10 --------- Run | Yrd Mat Sub Machines Accessed 6 | . 5 1 Terminals 5 | . 5 . Fabricators . | . . . Repair Stations . | . . . Recycling Units . | . . . Scanalyzers . | . . . Garrison Access . | . . . Total Hacks 14 | . 12 2 Successful 9 | . 7 2 Failed 5 | . 5 . Catastrophic . | . . . Database Lockouts . | . . . Manual 19 | . 3 16 Terminals 12 | . 12 . Fabricators . | . . . Repair Stations . | . . . Recycling Units . | . . . Scanalyzers . | . . . Garrison Access . | . . . Terminal Hacks 6 | . 4 2 Record 2 | . . 2 Prototype ID Bank 2 | . 2 . Branch Access Points 1 | . 1 . Zone Layout 1 | . 1 . Fabricator Hacks . | . . . Repair Station Hacks . | . . . Recycling Unit Hacks . | . . . Scanalyzer . | . . . Garrison Access Hacks . | . . . Unauthorized Hacks 3 | . 3 . Terminals 3 | . 3 . Assimilate 1 | . 1 . Botnet 1 | . 1 . Operators 1 | . 1 . Fabricators . | . . . Repair Stations . | . . . Recycling Units . | . . . Scanalyzers . | . . . Garrison Access . | . . . Data Cores Recovered . | . . . Used . | . . . Hacking Detections 3 | . 3 . Full Trace Events . | . . . Feedback Events . | . . . Feedback Blocked . | . . . Robot Schematics Acquired . | . . . Robots Built . | . . . Authchips . | . . . Time . | . . . Total Robot Build Rating . | . . . Part Schematics Acquired . | . . . Parts Built . | . . . Authchips . | . . . Time . | . . . Total Part Build Rating . | . . . Parts Repaired . | . . . Time . | . . . Parts Recycled . | . . . Recycled Matter . | . . . Retrieved Matter . | . . . Retrieved Components . | . . . Parts Scanalyzed . | . . . Part Schematics Acquired . | . . . Parts Damaged . | . . . Bothacking | -11 -10 -10 ------------ Run | Yrd Mat Sub Used RIF Installer . | . . . Robots Hacked . | . . . Non-combat . | . . . Combat . | . . . Robot Hacks Applied . | . . . Relay Couplers Released . | . . . Fabnet Peak Effective % . | . . . Robots Rewired . | . . . Allies Hacked . | . . . Hacks Repelled . | . . . Allies | -11 -10 -10 -------- Run | Yrd Mat Sub Total Allies . | . . . Largest Group . | . . . Highest-Rated Group . | . . . Highest-Rated Ally . | . . . Total Orders . | . . . Ally Attacks . | . . . Total Damage . | . . . Kills . | . . . Allies Corrupted . | . . . Allies Melted . | . . . Intel | -11 -10 -10 ------- Run | Yrd Mat Sub Robot Analysis Total . | . . . Derelict Logs Recovered . | . . . Drone Launches . | . . . Drone Recoveries . | . . . Exploration | -11 -10 -10 ------------- Run | Yrd Mat Sub Turns Passed 3368 | 113 2686 569 Spaces Moved 989 | 58 786 145 Core 3 | 2 . 1 Treads 986 | 56 786 144 Legs . | . . . Wheels . | . . . Hover . | . . . Flight . | . . . Fastest Speed 50 | 50 160 150 Average Speed 263 | 156 290 159 Slowest Speed 480 | 160 480 160 Overloaded Moves . | . . . Propulsion Burnouts . | . . . Robots Hopped . | . . . Cave-ins Triggered . | . . . Exploration Rate (%) 36 | 4 95 10 Regions Visited 2 Branch Regions 1 Pre-discovered Areas . | . . . Known Exits Taken . | . . . Unknown Exits Taken 2 | 1 1 . Scrap Searched . | . . . Spaces Dug 1 | . 1 . Terrain Destroyed 1 | . 1 . Melee 1 | . 1 . Projectile . | . . . AOE . | . . . Terrain Rammed . | . . . Walls Destroyed . | . . . Machines Disabled . | . . . Actions | -11 -10 -10 --------- Run | Yrd Mat Sub Total 1579 | 78 1043 458 Wait 439 | 12 134 293 Move 987 | 57 785 145 Hop . | . . . Pick Up 16 | 4 12 . Fast Attach 14 | 5 8 1 Attach 1 | . 1 . Detach 5 | . 5 . Swap 5 | . 5 . Drop 5 | . 4 1 Fire 85 | . 81 4 Melee 22 | . 8 14 Ram . | . . . Kick . | . . . Crush . | . . . Escape Stasis . | . . . Rewire . | . . . Trap . | . . . Miscellaneous . | . . . Route ------- -11/Scrapyard -10/Materials (discovered 5 exits: [*Mat x3] / *Min / *Sub) -10/Subcaves History --------- Turn | Location | Event 10 | -11/Scrapyard | Discovered new exit (range 16) 114 | -11/Scrapyard | Entered Materials 322 | -10/Materials | Build established: Mutant 633 | -10/Materials | Discovered new exit (range 3) 1269 | -10/Materials | Discovered new exit (range 16) 1317 | -10/Materials | Identified exit to Mines 2034 | -10/Materials | Discovered new exit (range 9) 2780 | -10/Materials | Discovered new exit (range 7) 2800 | -10/Materials | Entered Subcaves 3113 | -10/Subcaves | Core integrity fell below 50% 3201 | -10/Subcaves | Visited Clippyterm 3355 | -10/Subcaves | Core integrity fell below 20% 3369 | -10/Subcaves | Destroyed by Y9-GYZ(R) with Subdweller Machine Gun Last Messages --------------- data I collect to feed it, half the time it still manages to suggest unhelpful sample queries and responses. --DD-NU8 >>Record! "Tab" It looks like you're biased against spaces, I think you need more help than I can offer. 03227_ System corrupted: Component data lost. 03261_ System corrupted: Heat flow error (+290). 03286_ System corrupted: Matter fused (-10). 03342_ Terrain Scanner destroyed. 03344_ Y9-GYZ(R) knocked back. 03345_ Lgt. Treads destroyed. 03348_ VQ-ZDE(R) suffers critical hit (Smash). 03348_ Destroyed Disposable Heat Sink. 03348_ VQ-ZDE(R) system corrupted by crushing effect. 03353_ VQ-ZDE(R) misfires. 03355_ Lgt. Treads destroyed. 03355_ VQ-ZDE(R) suffers critical hit (Smash). 03355_ VQ-ZDE(R) destroyed. Map ----- +----------------------------------------------------+ | ?????????????????????????????????????????#???????? | | ?????????????????????????????????????#????????#??? | | ?????????????????????????????????????????????????? | | ?????????????????????????????????????????????#???? | | ????????????????????????????????????????#??#?????? | | ?????????????????????????????????????#?????#??#??? | | ?????????????????????????????????????????????????? | | ?????????????????????????????????#???????????????? | | ???????????????????????????????????????????####### | | ??????????????????????????????????????#?#??#"""""# | | ??????????????????????????#????????????#???#""X""# | | ???????????????????????##??????????#?#??#??#" "# | | ??????????????????????## ?????###???########## ### | | ??????????????????????? #???## #?### ## ## | | ?????????????????????#?? #??# %##?# # | | ????????????????????????? ### #?# | | ???????????????????????#? ## ### | | ?????????????????????????? ## ## ### | | ??????????????????????????# ## # ###?### | | ??????????????????????????# ## ## ###?### | | ??????????????????????????# #?# ### #?# | | ?????????????????????????## #### ### #?# | | ???????????????????????### ### ##### ### | | ??????????????"?""###### ### | | ????????????# """" ## | | ??????????????# !%@ R | | ??????????????# %# ###* | | ?????????????????###??# % ## | | ????????????????????? % ##? | | ??????????????????## % ####??? | | ???????????????????### #?????? | | ?????????????????????## ## #????? | | ??????????????????????##### ### ####????? | | ??????????????????????????###?# #???????? | | ?????????????????????????????# ## ???#???? | | ????????????????????????????? ########???????? | | ????????????????????? ?????? #??????????????? | | ????????????????????????????? ##??????????????? | | ??????????????????????????????###????????????????? | | ?????????????????????????????????????????????????? | | ?????????????????????????????????????????????????? | | ?????????????????????????????????????????????????? | | ?????????????????????????????????????????????????? | | ?????????????????????????????????????????????????? | | ?????????????????????????????????????????????????? | | ?????????????????????????????????????????????????? | | ?????????????????????????????????????????????????? | | ?????????????????????????????????????????????????? | | ?????????????????????????????????????????????????? | | ?????????????????????????????????????????????????? | +----------------------------------------------------+ Best States ------------- Heat Dissipation 25 Energy Generation 10 Energy Capacity 250 Matter Stores 300 Matter Capacity 300 Sight Range 16 Terrain Scan Range 14 Terrain Scan Density 10 Armor Coverage 150 Weapon Shielding 33 Evasion (%) 40 Recoil Reduction 2 Item Schematics ----------------- None Robot Schematics ------------------ None Fabricated ------------ Nothing Alien Tech Used ----------------- None Achievements -------------- None Challenges ------------ None Game ------ Seed FluxLobotomyBeamcaster Manual? 0 Play Time 00:21:04 Cumulative 63.8 hours Start 2024.05.07 @ 18:30:53 End 2024.05.07 @ 20:50:20 Sessions 1 Manual Loads 0 Difficulty Rogue Special Mode None Game No. 94 Rogue 94 Adventurer 0 Explorer 0 Win Type - Total 1 Types 1/0/0/0/0/0/0/0/0 Lore% 31 Gallery% 39 Achievement% 30 Wizard Run 0 Options --------- Layout 1 ASCII 0 Keyboard 1 Movement Numpad Keybinds 0 Fullscreen 1 Font 24/Smallcaps Map View 50x35 Zoom Use 0% Tactical HUD 1 Map Filters NONE Filters NONE Steam 1 RUN: 1fa76db8-71e0-427e-842f-021c98c9ad70